[Event "Titled Tuesday Blitz December 20 Early 2022"]
[White "DIMONBANAN"]
[Black "AldokhinIvan"]
[WhiteElo "2416"]
[BlackElo "2572"]
[Result "0-1"]
[Round "08"]
[TimeControl "180+2"]
[Date "2022.12.20"]
[WhiteClock "0:00:01"]
[BlackClock "0:00:16"]

1. e4 {[%clk 0:03:00]}  c5 {[%clk 0:02:57]} 2. Nf3 {[%clk 0:03:01]}  g6 {[%clk 0:02:57]} 3. c4 {[%clk 0:02:58]}  Nc6 {[%clk 0:02:54]} 4. d4 {[%clk 0:02:56]}  cxd4 {[%clk 0:02:52]} 5. Nxd4 {[%clk 0:02:57]}  Nf6 {[%clk 0:02:52]} 6. Nc3 {[%clk 0:02:57]}  Nxd4 {[%clk 0:02:52]} 7. Qxd4 {[%clk 0:02:57]}  d6 {[%clk 0:02:52]} 8. Be2 {[%clk 0:02:56]}  Bg7 {[%clk 0:02:53]} 9. Be3 {[%clk 0:02:54]}  O-O {[%clk 0:02:53]} 10. f3 {[%clk 0:02:55]}  Ng4 {[%clk 0:02:51]} 11. Qd2 {[%clk 0:02:49]}  Nxe3 {[%clk 0:02:48]} 12. Qxe3 {[%clk 0:02:50]}  Qa5 {[%clk 0:02:37]} 13. O-O {[%clk 0:01:43]}  Be6 {[%clk 0:02:24]} 14. Rfc1 {[%clk 0:01:40]}  Rfc8 {[%clk 0:02:18]} 15. b3 {[%clk 0:01:33]}  b5 {[%clk 0:02:04]} 16. Nxb5 {[%clk 0:01:28]}  Bxa1 {[%clk 0:02:02]} 17. Rxa1 {[%clk 0:01:29]}  a6 {[%clk 0:01:55]} 18. Nd4 {[%clk 0:01:29]}  Qc5 {[%clk 0:01:46]} 19. Kf1 {[%clk 0:01:15]}  a5 {[%clk 0:01:44]} 20. Qd2 {[%clk 0:01:05]}  a4 {[%clk 0:01:33]} 21. b4 {[%clk 0:00:34]}  Qe5 {[%clk 0:01:31]} 22. Rc1 {[%clk 0:00:23]}  Qxh2 {[%clk 0:01:28]} 23. Nxe6 {[%clk 0:00:21]}  fxe6 {[%clk 0:01:29]} 24. a3 {[%clk 0:00:21]}  Qe5 {[%clk 0:01:19]} 25. Kf2 {[%clk 0:00:17]}  Kg7 {[%clk 0:01:16]} 26. g3 {[%clk 0:00:17]}  h5 {[%clk 0:01:14]} 27. Kg2 {[%clk 0:00:17]}  Rh8 {[%clk 0:01:07]} 28. f4 {[%clk 0:00:16]}  Qf6 {[%clk 0:00:55]} 29. Bd3 {[%clk 0:00:06]}  h4 {[%clk 0:00:54]} 30. g4 {[%clk 0:00:06]}  h3+ {[%clk 0:00:52]} 31. Kh2 {[%clk 0:00:06]}  g5 {[%clk 0:00:46]} 32. Rf1 {[%clk 0:00:05]}  Raf8 {[%clk 0:00:44]} 33. fxg5 {[%clk 0:00:02]}  Qe5+ {[%clk 0:00:42]} 34. Kh1 {[%clk 0:00:03]}  Rxf1+ {[%clk 0:00:36]} 35. Bxf1 {[%clk 0:00:04]}  Qxe4+ {[%clk 0:00:35]} 36. Kh2 {[%clk 0:00:04]}  Qe5+ {[%clk 0:00:33]} 37. Kh1 {[%clk 0:00:03]}  Rf8 {[%clk 0:00:25]} 38. Bxh3 {[%clk 0:00:02]}  Qg3 {[%clk 0:00:24]} 39. Bg2 {[%clk 0:00:01]}  Qxa3 {[%clk 0:00:15]} 40. Qd4+ {[%clk 0:00:01]}  e5 {[%clk 0:00:15]} 41. Qe4 {[%clk 0:00:01]}  Qc1+ {[%clk 0:00:14]} 42. Kh2 {[%clk 0:00:01]}  Qf4+ {[%clk 0:00:15]} 43. Qxf4 {[%clk 0:00:01]}  Rxf4 {[%clk 0:00:16]} 44. Be4 {[%clk 0:00:01]} 0-1


[Site "https://www.chess.com"]

[Event "Titled Tuesday Blitz December 20 Early 2022"]
[White "De Firmian, Nick"]
[Black "Jenkins, Drake"]
[WhiteFideId "2000105"]
[BlackFideId "2022397"]
[WhiteElo "2460"]
[BlackElo "2130"]
[Result "1-0"]
[Round "08"]
[TimeControl "180+2"]
[Date "2022.12.20"]
[WhiteClock "0:00:22"]
[BlackClock "0:00:01"]

1. Nf3 {[%clk 0:03:00]}  Nf6 {[%clk 0:02:59]} 2. g3 {[%clk 0:03:00]}  c5 {[%clk 0:02:59]} 3. Bg2 {[%clk 0:03:01]}  Nc6 {[%clk 0:02:58]} 4. d4 {[%clk 0:03:01]}  cxd4 {[%clk 0:02:57]} 5. Nxd4 {[%clk 0:03:02]}  g6 {[%clk 0:02:54]} 6. O-O {[%clk 0:03:02]}  Bg7 {[%clk 0:02:54]} 7. c4 {[%clk 0:03:02]}  O-O {[%clk 0:02:54]} 8. Nc2 {[%clk 0:03:03]}  d6 {[%clk 0:02:50]} 9. Nc3 {[%clk 0:03:03]}  Bd7 {[%clk 0:02:36]} 10. b3 {[%clk 0:03:03]}  a6 {[%clk 0:02:35]} 11. Bb2 {[%clk 0:03:03]}  Rb8 {[%clk 0:02:35]} 12. a4 {[%clk 0:02:59]}  Qb6 {[%clk 0:02:20]} 13. Ne3 {[%clk 0:02:56]}  Rfe8 {[%clk 0:02:10]} 14. Ncd5 {[%clk 0:02:53]}  Nxd5 {[%clk 0:02:08]} 15. Nxd5 {[%clk 0:02:53]}  Qa5 {[%clk 0:01:45]} 16. Bxg7 {[%clk 0:02:51]}  Kxg7 {[%clk 0:01:46]} 17. Qc2 {[%clk 0:02:25]}  Be6 {[%clk 0:01:37]} 18. Qb2+ {[%clk 0:02:21]}  f6 {[%clk 0:01:36]} 19. b4 {[%clk 0:02:15]}  Qd8 {[%clk 0:01:29]} 20. b5 {[%clk 0:02:14]}  Bxd5 {[%clk 0:01:23]} 21. Bxd5 {[%clk 0:02:08]}  Ne5 {[%clk 0:01:16]} 22. Rfc1 {[%clk 0:02:04]}  e6 {[%clk 0:01:00]} 23. Bg2 {[%clk 0:02:03]}  Re7 {[%clk 0:00:56]} 24. b6 {[%clk 0:02:00]}  Rc8 {[%clk 0:00:51]} 25. Qb4 {[%clk 0:01:49]}  a5 {[%clk 0:00:46]} 26. Qxa5 {[%clk 0:01:45]}  Nxc4 {[%clk 0:00:38]} 27. Qb5 {[%clk 0:01:32]}  Qxb6 {[%clk 0:00:22]} 28. Rab1 {[%clk 0:00:55]}  Qxb5 {[%clk 0:00:20]} 29. Rxb5 {[%clk 0:00:56]}  d5 {[%clk 0:00:19]} 30. e3 {[%clk 0:00:50]}  Rec7 {[%clk 0:00:18]} 31. Re1 {[%clk 0:00:33]}  Kf7 {[%clk 0:00:16]} 32. Bf1 {[%clk 0:00:32]}  Nd6 {[%clk 0:00:16]} 33. Rb6 {[%clk 0:00:32]}  Ke7 {[%clk 0:00:16]} 34. h4 {[%clk 0:00:30]}  Rc1 {[%clk 0:00:15]} 35. Rxc1 {[%clk 0:00:30]}  Rxc1 {[%clk 0:00:15]} 36. Kg2 {[%clk 0:00:31]}  Kd7 {[%clk 0:00:15]} 37. Rb4 {[%clk 0:00:29]}  Kc7 {[%clk 0:00:14]} 38. h5 {[%clk 0:00:25]}  gxh5 {[%clk 0:00:13]} 39. Rh4 {[%clk 0:00:25]}  Ra1 {[%clk 0:00:10]} 40. Rxh5 {[%clk 0:00:22]}  Rxa4 {[%clk 0:00:09]} 41. Rxh7+ {[%clk 0:00:23]}  Kc6 {[%clk 0:00:07]} 42. Re7 {[%clk 0:00:23]}  e5 {[%clk 0:00:06]} 43. Re6 {[%clk 0:00:23]}  b5 {[%clk 0:00:04]} 44. Bxb5+ {[%clk 0:00:20]}  Kxb5 {[%clk 0:00:04]} 45. Rxd6 {[%clk 0:00:21]}  Kc5 {[%clk 0:00:03]} 46. Rxf6 {[%clk 0:00:21]}  d4 {[%clk 0:00:04]} 47. exd4+ {[%clk 0:00:20]}  exd4 {[%clk 0:00:05]} 48. Rf4 {[%clk 0:00:20]}  Ra3 {[%clk 0:00:03]} 49. g4 {[%clk 0:00:21]}  d3 {[%clk 0:00:03]} 50. Rf3 {[%clk 0:00:21]}  d2 {[%clk 0:00:02]} 51. Rxa3 {[%clk 0:00:21]}  d1=Q {[%clk 0:00:02]} 52. Rf3 {[%clk 0:00:22]}  Qd5 {[%clk 0:00:01]} 53. Kg3 {[%clk 0:00:22]}  Kd6 {[%clk 0:00:01]} 54. Rf4 {[%clk 0:00:22]}  Ke6 {[%clk 0:00:01]} 55. f3 {[%clk 0:00:22]} 1-0


[Site "https://www.chess.com"]

[Event "Titled Tuesday Blitz December 20 Early 2022"]
[White "Edam, Michael"]
[Black "Karttunen, Mika"]
[WhiteFideId "24613231"]
[BlackFideId "502081"]
[WhiteElo "2023"]
[BlackElo "2490"]
[Result "0-1"]
[Round "08"]
[TimeControl "180+2"]
[Date "2022.12.20"]
[WhiteClock "0:01:29"]
[BlackClock "0:01:08"]

1. e4 {[%clk 0:03:00]}  e5 {[%clk 0:02:58]} 2. Nf3 {[%clk 0:03:00]}  Nc6 {[%clk 0:02:58]} 3. Bb5 {[%clk 0:03:00]}  Nf6 {[%clk 0:02:56]} 4. O-O {[%clk 0:02:59]}  Nxe4 {[%clk 0:02:56]} 5. d4 {[%clk 0:02:55]}  Nd6 {[%clk 0:02:55]} 6. dxe5 {[%clk 0:02:55]}  Nxb5 {[%clk 0:02:55]} 7. a4 {[%clk 0:02:56]}  Nbd4 {[%clk 0:02:43]} 8. Nxd4 {[%clk 0:02:56]}  Nxd4 {[%clk 0:02:42]} 9. Qxd4 {[%clk 0:02:56]}  d5 {[%clk 0:02:42]} 10. exd6 {[%clk 0:02:57]}  Qxd6 {[%clk 0:02:42]} 11. Qe4+ {[%clk 0:02:57]}  Qe6 {[%clk 0:02:38]} 12. Qd4 {[%clk 0:02:58]}  Qd6 {[%clk 0:02:09]} 13. Qe4+ {[%clk 0:02:57]}  Be7 {[%clk 0:02:05]} 14. Bf4 {[%clk 0:02:39]}  Qb6 {[%clk 0:01:43]} 15. Nc3 {[%clk 0:02:35]}  Be6 {[%clk 0:01:41]} 16. Nd5 {[%clk 0:02:20]}  Bxd5 {[%clk 0:01:41]} 17. Qxd5 {[%clk 0:02:20]}  O-O {[%clk 0:01:34]} 18. a5 {[%clk 0:02:05]}  Qxb2 {[%clk 0:01:28]} 19. Rab1 {[%clk 0:02:04]}  Qxc2 {[%clk 0:01:25]} 20. Rxb7 {[%clk 0:02:04]}  c6 {[%clk 0:01:22]} 21. Qd7 {[%clk 0:01:53]}  Bc5 {[%clk 0:01:20]} 22. Rc7 {[%clk 0:01:45]}  Rad8 {[%clk 0:01:12]} 23. Qxc6 {[%clk 0:01:36]}  Qxf2+ {[%clk 0:01:08]} 24. Rxf2 {[%clk 0:01:29]}  Rd1# {[%clk 0:01:08]} 0-1


[Site "https://www.chess.com"]

[Event "Titled Tuesday Blitz December 20 Early 2022"]
[White "Ekat, Michael"]
[Black "Kotofeyca"]
[WhiteFideId "4689801"]
[WhiteElo "2051"]
[BlackElo "2372"]
[Result "1-0"]
[Round "08"]
[TimeControl "180+2"]
[Date "2022.12.20"]
[WhiteClock "0:00:09"]
[BlackClock "0:00:01"]

1. d4 {[%clk 0:03:00]}  d5 {[%clk 0:02:59]} 2. Nf3 {[%clk 0:03:00]}  c6 {[%clk 0:03:00]} 3. c4 {[%clk 0:02:58]}  Nf6 {[%clk 0:03:00]} 4. Nc3 {[%clk 0:02:58]}  dxc4 {[%clk 0:02:59]} 5. a4 {[%clk 0:02:57]}  Bg4 {[%clk 0:03:00]} 6. e3 {[%clk 0:02:57]}  e5 {[%clk 0:02:59]} 7. Bxc4 {[%clk 0:02:48]}  Bxf3 {[%clk 0:02:57]} 8. Qxf3 {[%clk 0:02:47]}  exd4 {[%clk 0:02:58]} 9. exd4 {[%clk 0:02:46]}  Qxd4 {[%clk 0:02:59]} 10. Qe2+ {[%clk 0:02:44]}  Be7 {[%clk 0:02:56]} 11. O-O {[%clk 0:02:42]}  Nbd7 {[%clk 0:02:52]} 12. Rd1 {[%clk 0:02:35]}  Qe5 {[%clk 0:02:49]} 13. Qd2 {[%clk 0:02:12]}  O-O {[%clk 0:02:44]} 14. b3 {[%clk 0:02:08]}  Bb4 {[%clk 0:02:37]} 15. Bb2 {[%clk 0:02:07]}  Nb6 {[%clk 0:02:20]} 16. Qc2 {[%clk 0:01:48]}  Nxc4 {[%clk 0:02:17]} 17. bxc4 {[%clk 0:01:48]}  Qa5 {[%clk 0:01:52]} 18. Ne2 {[%clk 0:01:38]}  Qg5 {[%clk 0:01:41]} 19. Rd3 {[%clk 0:01:28]}  Qf5 {[%clk 0:01:21]} 20. Nd4 {[%clk 0:01:24]}  Qe4 {[%clk 0:01:15]} 21. Qb3 {[%clk 0:01:18]}  a5 {[%clk 0:01:11]} 22. Re3 {[%clk 0:01:12]}  Qf4 {[%clk 0:01:06]} 23. Ne2 {[%clk 0:01:09]}  Qh4 {[%clk 0:01:01]} 24. Rh3 {[%clk 0:00:44]}  Qg4 {[%clk 0:00:55]} 25. Nd4 {[%clk 0:00:38]}  Rfe8 {[%clk 0:00:49]} 26. Rg3 {[%clk 0:00:30]}  Qe4 {[%clk 0:00:48]} 27. h3 {[%clk 0:00:21]}  Rad8 {[%clk 0:00:39]} 28. Re3 {[%clk 0:00:20]}  Qf4 {[%clk 0:00:35]} 29. Rf3 {[%clk 0:00:20]}  Qh4 {[%clk 0:00:30]} 30. Nf5 {[%clk 0:00:19]}  Qe4 {[%clk 0:00:19]} 31. Nxg7 {[%clk 0:00:18]}  Nd7 {[%clk 0:00:03]} 32. Nxe8 {[%clk 0:00:17]}  Rxe8 {[%clk 0:00:04]} 33. Qd3 {[%clk 0:00:16]}  Qe6 {[%clk 0:00:04]} 34. Rg3+ {[%clk 0:00:15]}  Kf8 {[%clk 0:00:04]} 35. Qe3 {[%clk 0:00:14]}  Qg6 {[%clk 0:00:03]} 36. Qd4 {[%clk 0:00:10]}  Qh5 {[%clk 0:00:02]} 37. Qxd7 {[%clk 0:00:09]}  Re2 {[%clk 0:00:01]} 38. Bg7+ {[%clk 0:00:09]} 1-0


[Site "https://www.chess.com"]

[Event "Titled Tuesday Blitz December 20 Early 2022"]
[White "Etoilegeniale"]
[Black "Andrii_Prydun"]
[WhiteElo "2593"]
[BlackElo "2387"]
[Result "1-0"]
[Round "08"]
[TimeControl "180+2"]
[Date "2022.12.20"]
[WhiteClock "0:00:57"]
[BlackClock "0:01:06"]

1. c4 {[%clk 0:03:00]}  Nf6 {[%clk 0:02:56]} 2. Nc3 {[%clk 0:02:59]}  c5 {[%clk 0:02:55]} 3. g3 {[%clk 0:02:58]}  Nc6 {[%clk 0:02:56]} 4. Bg2 {[%clk 0:02:58]}  e5 {[%clk 0:02:56]} 5. d3 {[%clk 0:02:56]}  d6 {[%clk 0:02:56]} 6. Nf3 {[%clk 0:02:56]}  Be7 {[%clk 0:02:57]} 7. O-O {[%clk 0:02:56]}  O-O {[%clk 0:02:57]} 8. Rb1 {[%clk 0:02:55]}  Be6 {[%clk 0:02:56]} 9. Bg5 {[%clk 0:02:52]}  Nd7 {[%clk 0:02:54]} 10. Bxe7 {[%clk 0:02:52]}  Nxe7 {[%clk 0:02:54]} 11. Nd2 {[%clk 0:02:49]}  Rb8 {[%clk 0:02:52]} 12. a3 {[%clk 0:02:48]}  b6 {[%clk 0:02:41]} 13. b4 {[%clk 0:02:45]}  a6 {[%clk 0:02:31]} 14. Qa4 {[%clk 0:02:28]}  Ra8 {[%clk 0:02:26]} 15. Bxa8 {[%clk 0:02:24]}  Qxa8 {[%clk 0:02:27]} 16. e4 {[%clk 0:02:24]}  f5 {[%clk 0:02:23]} 17. f3 {[%clk 0:02:17]}  f4 {[%clk 0:02:21]} 18. Nd5 {[%clk 0:02:16]}  b5 {[%clk 0:02:13]} 19. Nxe7+ {[%clk 0:02:05]}  Kf7 {[%clk 0:02:13]} 20. cxb5 {[%clk 0:02:02]}  Kxe7 {[%clk 0:02:13]} 21. bxa6 {[%clk 0:01:51]}  Qa7 {[%clk 0:02:10]} 22. Rf2 {[%clk 0:01:32]}  fxg3 {[%clk 0:02:05]} 23. hxg3 {[%clk 0:01:32]}  g5 {[%clk 0:02:04]} 24. b5 {[%clk 0:01:24]}  g4 {[%clk 0:02:03]} 25. b6 {[%clk 0:01:06]}  Nxb6 {[%clk 0:02:00]} 26. Qc6 {[%clk 0:01:04]}  Rb8 {[%clk 0:01:49]} 27. Nc4 {[%clk 0:01:01]}  Nxc4 {[%clk 0:01:15]} 28. Rb7+ {[%clk 0:00:58]}  Rxb7 {[%clk 0:01:07]} 29. Qxb7+ {[%clk 0:00:57]}  Qxb7 {[%clk 0:01:06]} 30. axb7 {[%clk 0:00:57]} 1-0


[Site "https://www.chess.com"]

[Event "Titled Tuesday Blitz December 20 Early 2022"]
[White "Ezat, Mohamed"]
[Black "Nyambe, Maketo"]
[WhiteFideId "10600906"]
[BlackFideId "8700915"]
[WhiteElo "2402"]
[BlackElo "2091"]
[Result "1-0"]
[Round "08"]
[TimeControl "180+2"]
[Date "2022.12.20"]
[WhiteClock "0:01:10"]
[BlackClock "0:00:01"]

1. d4 {[%clk 0:03:00]}  d5 {[%clk 0:02:46]} 2. c4 {[%clk 0:02:49]}  e6 {[%clk 0:02:45]} 3. Nc3 {[%clk 0:02:49]}  Nf6 {[%clk 0:02:45]} 4. cxd5 {[%clk 0:02:49]}  exd5 {[%clk 0:02:44]} 5. Bg5 {[%clk 0:02:48]}  Be7 {[%clk 0:02:45]} 6. e3 {[%clk 0:02:47]}  c6 {[%clk 0:02:45]} 7. Qc2 {[%clk 0:02:43]}  Bg4 {[%clk 0:02:45]} 8. Bd3 {[%clk 0:02:41]}  Bh5 {[%clk 0:02:45]} 9. Nge2 {[%clk 0:02:40]}  Bg6 {[%clk 0:02:45]} 10. Nf4 {[%clk 0:02:40]}  Bxd3 {[%clk 0:02:24]} 11. Nxd3 {[%clk 0:02:38]}  Nbd7 {[%clk 0:02:25]} 12. O-O {[%clk 0:02:30]}  O-O {[%clk 0:02:20]} 13. b4 {[%clk 0:02:27]}  a6 {[%clk 0:02:19]} 14. Na4 {[%clk 0:02:18]}  h6 {[%clk 0:01:51]} 15. Bf4 {[%clk 0:02:17]}  Nh5 {[%clk 0:01:41]} 16. Be5 {[%clk 0:02:12]}  Nxe5 {[%clk 0:01:32]} 17. dxe5 {[%clk 0:02:10]}  g6 {[%clk 0:01:30]} 18. e6 {[%clk 0:02:05]}  f5 {[%clk 0:01:21]} 19. Nac5 {[%clk 0:01:56]}  Qc7 {[%clk 0:00:59]} 20. Nd7 {[%clk 0:01:51]}  Rfe8 {[%clk 0:00:54]} 21. g4 {[%clk 0:01:48]}  Ng7 {[%clk 0:00:47]} 22. gxf5 {[%clk 0:01:27]}  Nxf5 {[%clk 0:00:48]} 23. Nf4 {[%clk 0:01:26]}  Kh7 {[%clk 0:00:41]} 24. Kh1 {[%clk 0:01:23]}  Bg5 {[%clk 0:00:25]} 25. Nxg6 {[%clk 0:01:12]}  Kxg6 {[%clk 0:00:24]} 26. f4 {[%clk 0:01:11]}  Rxe6 {[%clk 0:00:01]} 27. Nc5 {[%clk 0:01:10]} 1-0


[Site "https://www.chess.com"]

[Event "Titled Tuesday Blitz December 20 Early 2022"]
[White "Flawless_Fighter"]
[Black "Luks, Artur"]
[BlackFideId "21808856"]
[WhiteElo "2622"]
[BlackElo "1577"]
[Result "1-0"]
[Round "08"]
[TimeControl "180+2"]
[Date "2022.12.20"]
[WhiteClock "0:00:15"]
[BlackClock "0:00:01"]

1. d4 {[%clk 0:03:00]}  d5 {[%clk 0:02:52]} 2. Nf3 {[%clk 0:02:58]}  Nf6 {[%clk 0:02:52]} 3. Bf4 {[%clk 0:02:59]}  c5 {[%clk 0:02:52]} 4. e3 {[%clk 0:02:58]}  Nc6 {[%clk 0:02:52]} 5. Nbd2 {[%clk 0:02:57]}  e6 {[%clk 0:02:49]} 6. c3 {[%clk 0:02:56]}  Bd6 {[%clk 0:02:48]} 7. Bg3 {[%clk 0:02:56]}  O-O {[%clk 0:02:48]} 8. Bd3 {[%clk 0:02:55]}  Qe7 {[%clk 0:02:48]} 9. Ne5 {[%clk 0:02:45]}  Qc7 {[%clk 0:02:25]} 10. f4 {[%clk 0:02:39]}  b6 {[%clk 0:02:23]} 11. Qf3 {[%clk 0:02:32]}  a5 {[%clk 0:02:02]} 12. a4 {[%clk 0:02:26]}  Ba6 {[%clk 0:02:00]} 13. Bxa6 {[%clk 0:02:07]}  Rxa6 {[%clk 0:02:00]} 14. Bh4 {[%clk 0:02:08]}  Nd7 {[%clk 0:01:57]} 15. O-O {[%clk 0:02:01]}  f6 {[%clk 0:01:52]} 16. Nxc6 {[%clk 0:02:00]}  Qxc6 {[%clk 0:01:52]} 17. c4 {[%clk 0:02:00]}  Raa8 {[%clk 0:01:43]} 18. Nb3 {[%clk 0:01:53]}  Rac8 {[%clk 0:01:41]} 19. cxd5 {[%clk 0:01:52]}  Qxd5 {[%clk 0:01:36]} 20. Qxd5 {[%clk 0:01:51]}  exd5 {[%clk 0:01:36]} 21. dxc5 {[%clk 0:01:50]}  Nxc5 {[%clk 0:01:34]} 22. Nd4 {[%clk 0:01:48]}  Rfe8 {[%clk 0:01:33]} 23. Bf2 {[%clk 0:01:42]}  Nd3 {[%clk 0:01:32]} 24. b3 {[%clk 0:01:35]}  Bc5 {[%clk 0:01:29]} 25. Rad1 {[%clk 0:01:27]}  Nxf2 {[%clk 0:01:13]} 26. Kxf2 {[%clk 0:01:26]}  Bxd4 {[%clk 0:01:14]} 27. Rxd4 {[%clk 0:01:22]}  Rc2+ {[%clk 0:01:14]} 28. Kf3 {[%clk 0:01:19]}  Rc3 {[%clk 0:01:05]} 29. Re1 {[%clk 0:01:19]}  Rxb3 {[%clk 0:00:44]} 30. Rxd5 {[%clk 0:01:16]}  Re7 {[%clk 0:00:44]} 31. g4 {[%clk 0:01:08]}  h6 {[%clk 0:00:42]} 32. h4 {[%clk 0:01:06]}  Kf7 {[%clk 0:00:37]} 33. h5 {[%clk 0:01:06]}  Rb4 {[%clk 0:00:32]} 34. Rd6 {[%clk 0:01:05]}  Rxa4 {[%clk 0:00:30]} 35. Rxb6 {[%clk 0:01:04]}  Ra3 {[%clk 0:00:30]} 36. Ra6 {[%clk 0:01:00]}  Kg8 {[%clk 0:00:24]} 37. Kf2 {[%clk 0:00:54]}  Ra2+ {[%clk 0:00:23]} 38. Re2 {[%clk 0:00:54]}  Ra3 {[%clk 0:00:19]} 39. e4 {[%clk 0:00:49]}  Ra4 {[%clk 0:00:19]} 40. Kf3 {[%clk 0:00:48]}  Kf7 {[%clk 0:00:17]} 41. Re3 {[%clk 0:00:48]}  Kg8 {[%clk 0:00:16]} 42. Ra8+ {[%clk 0:00:44]}  Kf7 {[%clk 0:00:16]} 43. e5 {[%clk 0:00:44]}  fxe5 {[%clk 0:00:15]} 44. fxe5 {[%clk 0:00:45]}  Ke6 {[%clk 0:00:15]} 45. Ra6+ {[%clk 0:00:43]}  Kf7 {[%clk 0:00:14]} 46. Kg3 {[%clk 0:00:41]}  Rc7 {[%clk 0:00:07]} 47. Rf3+ {[%clk 0:00:36]}  Ke7 {[%clk 0:00:06]} 48. Rg6 {[%clk 0:00:36]}  Ke8 {[%clk 0:00:06]} 49. Re6+ {[%clk 0:00:34]}  Re7 {[%clk 0:00:06]} 50. Rg6 {[%clk 0:00:31]}  Re4 {[%clk 0:00:04]} 51. Rf5 {[%clk 0:00:26]}  R4xe5 {[%clk 0:00:04]} 52. Rxe5 {[%clk 0:00:26]}  Rxe5 {[%clk 0:00:04]} 53. Rxg7 {[%clk 0:00:26]}  Re6 {[%clk 0:00:04]} 54. Ra7 {[%clk 0:00:25]}  Kf8 {[%clk 0:00:03]} 55. Rxa5 {[%clk 0:00:25]}  Kg7 {[%clk 0:00:03]} 56. Kf4 {[%clk 0:00:25]}  Kf6 {[%clk 0:00:03]} 57. Rf5+ {[%clk 0:00:25]}  Kg7 {[%clk 0:00:03]} 58. Rb5 {[%clk 0:00:25]}  Rc6 {[%clk 0:00:04]} 59. Kf5 {[%clk 0:00:24]}  Rc7 {[%clk 0:00:04]} 60. Rb6 {[%clk 0:00:21]}  Rf7+ {[%clk 0:00:04]} 61. Ke5 {[%clk 0:00:22]}  Re7+ {[%clk 0:00:04]} 62. Re6 {[%clk 0:00:23]}  Rf7 {[%clk 0:00:04]} 63. Rg6+ {[%clk 0:00:21]}  Kh7 {[%clk 0:00:04]} 64. Ke6 {[%clk 0:00:22]}  Rf4 {[%clk 0:00:03]} 65. Ke5 {[%clk 0:00:22]}  Rf7 {[%clk 0:00:03]} 66. Rd6 {[%clk 0:00:20]}  Rg7 {[%clk 0:00:03]} 67. Kf5 {[%clk 0:00:20]}  Rf7+ {[%clk 0:00:03]} 68. Rf6 {[%clk 0:00:20]}  Rg7 {[%clk 0:00:03]} 69. Rf8 {[%clk 0:00:19]}  Ra7 {[%clk 0:00:02]} 70. Re8 {[%clk 0:00:18]}  Ra5+ {[%clk 0:00:02]} 71. Kf6 {[%clk 0:00:18]}  Ra6+ {[%clk 0:00:02]} 72. Re6 {[%clk 0:00:17]}  Ra4 {[%clk 0:00:01]} 73. Re7+ {[%clk 0:00:17]}  Kh8 {[%clk 0:00:01]} 74. Kf5 {[%clk 0:00:15]}  Ra5+ {[%clk 0:00:01]} 75. Re5 {[%clk 0:00:15]} 1-0


[Site "https://www.chess.com"]

[Event "Titled Tuesday Blitz December 20 Early 2022"]
[White "HackingKid98"]
[Black "InitiatingASC"]
[WhiteElo "2488"]
[BlackElo "2412"]
[Result "0-1"]
[Round "08"]
[TimeControl "180+2"]
[Date "2022.12.20"]
[WhiteClock "0:00:03"]
[BlackClock "0:00:13"]

1. c4 {[%clk 0:03:00]}  Nf6 {[%clk 0:02:58]} 2. g3 {[%clk 0:02:57]}  e5 {[%clk 0:02:57]} 3. Bg2 {[%clk 0:02:58]}  Nc6 {[%clk 0:02:57]} 4. Nf3 {[%clk 0:02:58]}  d5 {[%clk 0:02:55]} 5. cxd5 {[%clk 0:02:58]}  Nxd5 {[%clk 0:02:56]} 6. O-O {[%clk 0:02:58]}  Bc5 {[%clk 0:02:53]} 7. Nxe5 {[%clk 0:02:56]}  Nxe5 {[%clk 0:02:52]} 8. d4 {[%clk 0:02:56]}  Ng6 {[%clk 0:02:43]} 9. dxc5 {[%clk 0:02:54]}  Be6 {[%clk 0:02:44]} 10. e4 {[%clk 0:02:50]}  Nb4 {[%clk 0:02:44]} 11. Nc3 {[%clk 0:02:49]}  Qe7 {[%clk 0:02:36]} 12. Qa4+ {[%clk 0:02:47]}  Nc6 {[%clk 0:02:36]} 13. Be3 {[%clk 0:02:43]}  O-O {[%clk 0:02:35]} 14. f4 {[%clk 0:02:43]}  Bd7 {[%clk 0:02:25]} 15. Nd5 {[%clk 0:02:35]}  Qd8 {[%clk 0:02:23]} 16. Rad1 {[%clk 0:02:33]}  Re8 {[%clk 0:02:20]} 17. e5 {[%clk 0:02:31]}  Qc8 {[%clk 0:02:15]} 18. Qc2 {[%clk 0:02:30]}  Nce7 {[%clk 0:02:11]} 19. Nxe7+ {[%clk 0:02:26]}  Nxe7 {[%clk 0:02:12]} 20. b4 {[%clk 0:02:22]}  a5 {[%clk 0:02:10]} 21. Be4 {[%clk 0:02:12]}  axb4 {[%clk 0:02:02]} 22. Bxh7+ {[%clk 0:02:10]}  Kh8 {[%clk 0:02:02]} 23. Rd2 {[%clk 0:02:09]}  Nf5 {[%clk 0:01:51]} 24. Bxf5 {[%clk 0:02:06]}  Bxf5 {[%clk 0:01:51]} 25. Qb2 {[%clk 0:02:04]}  Qe6 {[%clk 0:01:49]} 26. Rfd1 {[%clk 0:02:02]}  Bg4 {[%clk 0:01:40]} 27. Rc1 {[%clk 0:01:59]}  Bf3 {[%clk 0:01:40]} 28. Kf2 {[%clk 0:01:56]}  Bc6 {[%clk 0:01:38]} 29. Qxb4 {[%clk 0:01:48]}  Rxa2 {[%clk 0:01:31]} 30. Rxa2 {[%clk 0:01:46]}  Qxa2+ {[%clk 0:01:30]} 31. Qd2 {[%clk 0:01:46]}  Qe6 {[%clk 0:01:25]} 32. Rd1 {[%clk 0:01:25]}  Ra8 {[%clk 0:01:20]} 33. Qe2 {[%clk 0:01:24]}  Qh3 {[%clk 0:01:14]} 34. Kg1 {[%clk 0:01:00]}  Ra3 {[%clk 0:01:12]} 35. Bd4 {[%clk 0:00:31]}  Bf3 {[%clk 0:00:37]} 36. Qf1 {[%clk 0:00:30]}  Qg4 {[%clk 0:00:30]} 37. Ra1 {[%clk 0:00:24]}  Rxa1 {[%clk 0:00:23]} 38. Bxa1 {[%clk 0:00:23]}  Bc6 {[%clk 0:00:23]} 39. Bd4 {[%clk 0:00:17]}  Qe6 {[%clk 0:00:22]} 40. h4 {[%clk 0:00:16]}  Qd5 {[%clk 0:00:19]} 41. Be3 {[%clk 0:00:12]}  Qh1+ {[%clk 0:00:18]} 42. Kf2 {[%clk 0:00:13]}  Qf3+ {[%clk 0:00:19]} 43. Ke1 {[%clk 0:00:11]}  Qxe3+ {[%clk 0:00:19]} 44. Kd1 {[%clk 0:00:12]}  Qxg3 {[%clk 0:00:19]} 45. Qe1 {[%clk 0:00:06]}  Qxf4 {[%clk 0:00:16]} 46. e6 {[%clk 0:00:06]}  fxe6 {[%clk 0:00:14]} 47. Qxe6 {[%clk 0:00:05]}  Qd4+ {[%clk 0:00:14]} 48. Kc1 {[%clk 0:00:04]}  Qxh4 {[%clk 0:00:13]} 49. Qc8+ {[%clk 0:00:03]}  Kh7 {[%clk 0:00:14]} 50. Qf5+ {[%clk 0:00:03]}  Kh6 {[%clk 0:00:13]} 51. Qe6+ {[%clk 0:00:02]}  Qf6 {[%clk 0:00:13]} 52. Qh3+ {[%clk 0:00:02]}  Kg6 {[%clk 0:00:13]} 53. Qg4+ {[%clk 0:00:03]}  Qg5+ {[%clk 0:00:13]} 0-1


[Site "https://www.chess.com"]